bitfinex-derivatives/quotes_SOLF0:USTF0_20250111
["timestamp","ask_amount","ask_price","bid_price","bid_amount"]
[1736558215913,11.01096551,187.89,187.76,11.01096551]
[1736558216208,211.33796551,187.92,187.7,4.8805]
[1736558216413,11.01096551,187.84,187.7,14.26386551]
[1736558216611,4.9215,187.83,187.7,14.26386551]
[1736558216807,2.6636,187.75,187.7,16.92796551]
[1736558217013,11.01096551,187.81,187.66,11.01096551]
[1736558217251,2.6643,187.7,187.64,2.6649]
[1736558217410,2.6643,187.7,187.65,11.01096551]
[1736558218313,2.6643,187.69,187.65,11.01096551]
[1736558220810,1.5437,187.76,187.65,11.01096551]
[1736558221015,3.1886,187.75,187.65,11.01096551]
[1736558221615,1.5437,187.76,187.68,11.01096551]
[1736558222414,2.664,187.71,187.68,11.01096551]
[1736558222715,1.5437,187.76,187.68,11.01096551]
[1736558223534,1.5437,187.76,187.65,11.01096551]
[1736558223718,3.1867,187.75,187.65,11.01096551]
[1736558225105,3.1867,187.75,187.64,5.48]
[1736558225307,3.1867,187.75,187.63,11.01096551]
[1736558225507,11.01096551,187.74,187.63,11.01096551]
[1736558225913,2.6649,187.66,187.63,11.01096551]
[1736558226511,2.665,187.64,187.63,11.01096551]
[1736558226816,2.665,187.64,187.6,11.01096551]
[1736558227016,2.6653,187.63,187.6,11.01096551]
[1736558230819,2.6653,187.63,187.59,2.6657]
[1736558231021,2.6654,187.62,187.59,11.01096551]
[1736558231712,11.01096551,187.71,187.59,11.01096551]
[1736558231914,2.6656,187.61,187.59,11.01096551]
[1736558232317,2.6656,187.6,187.59,11.01096551]
[1736558232517,2.6656,187.6,187.56,13.67706551]
[1736558234054,11.01096551,187.71,187.59,11.01096551]
[1736558234815,11.01096551,187.71,187.59,13.67656551]
[1736558236024,11.01096551,187.71,187.59,11.01096551]
[1736558236728,2.6656,187.61,187.59,11.01096551]
[1736558237422,11.01096551,187.71,187.56,13.67706551]
[1736558237627,2.6657,187.6,187.56,11.01096551]
[1736558237926,16.33796551,187.71,187.56,11.01096551]
[1736558238129,2.6657,187.59,187.56,11.01096551]
[1736558243430,2.6657,187.59,187.58,7.07494024]
[1736558250746,7.07494024,187.63,187.5,3.1452]
[1736558250951,7.07494024,187.61,187.5,3.1452]
[1736558251149,7.07494024,187.59,187.53,7.07494024]
[1736558251945,2.6664,187.54,187.53,7.07494024]
[1736558252147,7.07494024,187.59,187.53,7.07494024]
[1736558253753,2.6664,187.54,187.53,7.07494024]
[1736558255556,2.6664,187.54,187.5,2.667]
[1736558255757,2.6664,187.54,187.53,7.07494024]
[1736558255958,2.6664,187.54,187.5,2.667]
[1736558256154,2.6664,187.54,187.53,7.07494024]
[1736558256753,1.5627,187.6,187.53,7.07494024]
[1736558257060,3.1742,187.67,187.57,7.07494024]
[1736558257268,7.07494024,187.64,187.57,7.07494024]
[1736558257454,2.6656,187.6,187.57,7.07494024]
[1736558258154,62.08474909,187.7,187.59,7.07494024]
[1736558258361,62.08474909,187.7,187.65,7.07494024]
[1736558258556,2.6646,187.68,187.65,7.07494024]
[1736558259160,2.6642,187.7,187.65,7.07494024]
[1736558259459,7.07494024,187.72,187.65,7.07494024]
[1736558260760,2.6645,187.68,187.65,7.07494024]
[1736558261261,2.6649,187.65,187.61,11.04770621]
[1736558261504,16.03580621,187.73,187.61,11.04770621]
[1736558262851,4.9881,187.73,187.64,11.04770621]
[1736558263062,2.6641,187.71,187.64,11.04770621]
[1736558263257,4.9881,187.73,187.64,11.04770621]
[1736558264055,2.6646,187.67,187.64,11.04770621]
[1736558264255,4.9881,187.73,187.64,11.04770621]
[1736558265055,2.6641,187.71,187.64,13.71260621]
[1736558265260,4.9881,187.73,187.64,13.71260621]
[1736558266061,2.6644,187.69,187.64,13.71260621]
[1736558266560,83.18,187.74,187.67,13.71230621]
[1736558266762,3.2268,187.8,187.7,11.04770621]
[1736558268064,2.6635,187.75,187.7,13.71180621]
[1736558268262,3.2268,187.8,187.7,11.04770621]
[1736558268565,3.2268,187.8,187.68,5.48]
[1736558268761,2.6643,187.69,187.68,5.48]
[1736558269861,3.2268,187.8,187.68,5.48]
[1736558270261,5.327,187.79,187.68,5.48]
[1736558270567,3.2268,187.8,187.68,5.48]
[1736558271059,2.6643,187.7,187.68,5.48]
[1736558271460,2.6643,187.69,187.68,5.48]
[1736558273463,2.6643,187.69,187.67,11.04770621]
[1736558275162,16.37470621,187.77,187.67,11.04770621]
[1736558275365,2.6649,187.66,187.64,11.04770621]
[1736558275562,11.04770621,187.74,187.61,11.04770621]
[1736558275763,2.6653,187.63,187.61,11.04770621]
[1736558278966,3.2112,187.72,187.61,11.04770621]
[1736558279272,2.6653,187.62,187.61,11.04770621]
[1736558283262,7.07213233,187.69,187.61,7.07213233]
[1736558283466,3.2112,187.72,187.63,7.07213233]
[1736558283672,1.6413,187.72,187.69,7.07213233]
[1736558284072,1.6781,187.73,187.69,7.07213233]
[1736558284073,2.6642,187.7,187.69,7.07213233]
[1736558285365,2.664,187.71,187.68,11.04046036]
[1736558286376,3.1627,187.77,187.68,11.04046036]
[1736558286669,2.6637,187.74,187.71,11.04046036]
[1736558286870,3.1627,187.77,187.71,11.04046036]
[1736558287572,2.6639,187.72,187.71,11.04046036]
[1736558288771,3.1627,187.77,187.71,11.04046036]
[1736558289565,2.6638,187.73,187.71,10.9984919]
[1736558291174,2.6639,187.72,187.71,10.9984919]
[1736558292670,2.6641,187.71,187.68,11.04046036]
[1736558295970,3.1627,187.77,187.68,11.04046036]
[1736558296679,2.6636,187.75,187.68,11.04046036]
[1736558296869,3.1627,187.77,187.68,11.04046036]
[1736558297270,2.6648,187.66,187.65,11.04046036]
[1736558297473,16.36746036,187.75,187.62,11.04046036]
[1736558297875,2.6651,187.64,187.62,11.04046036]
[1736558298076,17.55209186,187.75,187.62,11.04046036]
[1736558298369,6.5116315,187.75,187.66,11.04046036]
[1736558298578,2.6645,187.69,187.66,11.04046036]
[1736558299681,12.0116315,187.76,187.67,2.6646]
[1736558299877,9.6743315,187.77,187.67,2.6646]
[1736558300277,3.1627,187.77,187.67,2.6646]
[1736558302175,2.6641,187.71,187.67,2.6646]
[1736558302380,3.1627,187.77,187.66,13.70516036]
[1736558303478,2.6642,187.71,187.66,13.70516036]
[1736558303677,3.1627,187.77,187.66,13.70516036]
[1736558305181,2.6643,187.7,187.66,13.70516036]
[1736558305385,2.6643,187.7,187.69,7.06676192]
[1736558306387,3.1627,187.77,187.69,7.06676192]
[1736558306582,3.1627,187.77,187.73,7.06676192]
[1736558306788,3.1627,187.77,187.71,7.06676192]
[1736558308083,2.664,187.72,187.71,7.06676192]
[1736558308887,6.53580357,187.78,187.71,7.06676192]
[1736558309088,6.53580357,187.78,187.77,7.06676192]
[1736558309384,83.16,187.79,187.77,7.06676192]
[1736558309584,2.663,187.78,187.77,7.06676192]
[1736558309784,83.16,187.79,187.75,7.06676192]
[1736558311087,2.6633,187.76,187.75,7.06676192]
[1736558313190,2.6636,187.74,187.73,7.06676192]
[1736558314291,2.6636,187.74,187.57,22.17963921]
[1736558314292,7.06676192,187.74,187.57,22.17963921]
[1736558314583,7.06676192,187.68,187.58,31.13715228]
[1736558314789,2.6655,187.61,187.6,7.06676192]
[1736558317392,2.6657,187.6,187.57,14.26461103]
[1736558317788,16.38031103,187.69,187.57,11.05331103]
[1736558317985,2.6659,187.58,187.57,11.05331103]
[1736558318490,2.6659,187.58,187.54,12.56821103]
[1736558319289,2.666,187.57,187.54,12.56821103]
[1736558321488,11.35027856,187.68,187.54,12.56821103]
[1736558321687,5.327,187.67,187.57,11.05331103]
[1736558322294,2.6658,187.59,187.57,11.05331103]
[1736558322488,5.327,187.67,187.57,11.05331103]
[1736558322684,3.2703,187.68,187.57,11.05331103]
[1736558324098,2.6654,187.62,187.6,11.05331103]
[1736558324995,11.05331103,187.72,187.6,11.05331103]
[1736558325795,16.38031103,187.72,187.6,11.05331103]
[1736558326297,16.38031103,187.72,187.59,5.5]
[1736558326298,14.29201103,187.75,187.63,11.05331103]
[1736558326699,6.9944,187.73,187.63,11.05331103]
[1736558326897,2.6647,187.67,187.63,11.05331103]
[1736558328295,2.6647,187.66,187.63,11.05331103]
[1736558329901,2.665,187.64,187.63,11.05331103]
[1736558330403,2.6652,187.63,187.62,1.5826]
[1736558333505,2.665,187.65,187.62,1.5826]
[1736558333704,1.6674,187.73,187.63,11.05331103]
[1736558334298,2.6647,187.67,187.63,11.05331103]
[1736558334527,1.6674,187.73,187.63,11.05331103]
[1736558335204,2.6649,187.66,187.63,11.05331103]
[1736558335798,2.665,187.64,187.63,11.05331103]
[1736558337614,2.6647,187.67,187.63,11.05331103]
[1736558337814,14.29201103,187.75,187.63,12.61341103]
[1736558337815,12.66391103,187.75,187.63,12.61341103]
[1736558338017,12.66391103,187.75,187.64,2.665]
[1736558338213,2.6645,187.69,187.64,2.665]
[1736558338735,2.6645,187.68,187.64,2.665]
[1736558339316,2.6645,187.68,187.67,7.06793565]
[1736558339719,2.6641,187.71,187.67,7.06793565]
[1736558340016,3.1143,187.78,187.7,7.06793565]
[1736558340213,2.6637,187.73,187.72,7.06793565]
[1736558341417,2.664,187.72,187.69,11.0393512]
[1736558341618,1.577,187.78,187.69,11.0393512]
[1736558341813,83.16,187.79,187.69,11.0393512]
[1736558342020,83.16,187.79,187.7,1.6171]
[1736558342519,2.6637,187.74,187.7,1.6171]
[1736558342723,12.6347512,187.81,187.7,1.6171]
[1736558342947,5.327,187.8,187.7,1.6171]
[1736558343416,2.6638,187.73,187.7,1.6171]
[1736558343620,12.6347512,187.81,187.7,1.6171]
[1736558343922,2.6639,187.72,187.7,1.6171]
[1736558344322,5.327,187.8,187.65,11.0393512]
[1736558344521,11.0393512,187.78,187.65,11.0393512]
[1736558344925,2.6647,187.67,187.65,11.0393512]
[1736558348918,2.6647,187.66,187.65,11.0393512]
[1736558349120,2.6647,187.66,187.62,2.6653]
[1736558349121,11.0393512,187.75,187.62,11.0393512]
[1736558349325,4.7877,187.74,187.62,11.0393512]
[1736558349524,2.665,187.65,187.62,11.0393512]
[1736558349822,4.7877,187.74,187.62,11.0393512]
[1736558350724,2.6652,187.63,187.59,11.0393512]
[1736558351821,5.327,187.71,187.59,11.0393512]
[1736558353025,2.6658,187.59,187.56,11.0393512]
[1736558353719,2.6649,187.66,187.56,11.0393512]
[1736558353920,5.327,187.69,187.59,11.0393512]
[1736558354723,2.6654,187.62,187.59,11.0393512]
[1736558354920,5.327,187.69,187.59,11.0393512]
[1736558355224,11.0393512,187.72,187.59,11.0393512]
[1736558355225,5.327,187.71,187.59,11.0393512]
[1736558355425,2.6654,187.62,187.59,11.0393512]
[1736558355624,5.327,187.71,187.59,11.0393512]
[1736558356124,2.6654,187.62,187.59,11.0393512]
[1736558356826,2.6657,187.6,187.56,11.0393512]
[1736558357321,16.3663512,187.69,187.56,11.0393512]
[1736558357525,2.6659,187.59,187.56,11.0393512]
[1736558359325,2.6659,187.58,187.56,11.0393512]
[1736558360325,2.666,187.57,187.56,11.0393512]
[1736558360523,11.0393512,187.66,187.53,11.0393512]
[1736558360722,4.7826,187.65,187.53,11.0393512]
[1736558361329,7.07664055,187.63,187.56,7.07664055]
[1736558363332,2.6662,187.57,187.56,7.07664055]
[1736558366732,4.7826,187.65,187.56,7.07664055]
[1736558366937,4.7826,187.65,187.6,7.07664055]
[1736558367236,2.6655,187.61,187.6,7.07664055]
[1736558367537,11.85924055,187.65,187.58,7.07664055]
[1736558367937,2.6657,187.59,187.58,7.07664055]
[1736558368840,2.6663,187.56,187.51,2.6669]
[1736558369032,2.6663,187.56,187.55,7.07664055]
[1736558369434,7.07664055,187.63,187.55,7.07664055]
[1736558369634,7.07664055,187.63,187.58,7.07664055]
[1736558370139,7.07664055,187.63,187.56,7.07664055]
[1736558370638,7.07664055,187.61,187.49,4.1912]
[1736558370843,7.07664055,187.59,187.53,7.07664055]
[1736558371036,7.07664055,187.59,187.51,7.07664055]
[1736558371937,2.6661,187.57,187.51,7.07664055]
[1736558372138,7.07664055,187.59,187.51,7.07664055]
[1736558372545,2.6667,187.52,187.51,7.07664055]
[1736558382647,7.07664055,187.55,187.44,4.7214]
[1736558382850,7.07664055,187.55,187.47,7.07664055]
[1736558383349,2.6674,187.48,187.47,7.07664055]
[1736558385749,2.6674,187.48,187.43,2.668]
[1736558385951,2.6681,187.43,187.39,2.6686]
[1736558386548,7.07664055,187.49,187.39,2.6686]
[1736558386850,2.6682,187.42,187.39,2.6686]
[1736558387644,2.6684,187.41,187.37,2.6687]
[1736558387850,2.6684,187.41,187.4,7.07664055]
[1736558388847,7.07664055,187.47,187.4,7.07664055]
[1736558389087,1.6215,187.48,187.42,7.07664055]
[1736558390154,2.668,187.43,187.42,7.07664055]
[1736558391256,2.6684,187.4,187.36,2.669]
[1736558391857,7.07664055,187.47,187.36,2.669]
[1736558392057,2.6686,187.39,187.36,2.669]
[1736558392858,2.6686,187.39,187.38,7.07664055]
[1736558393458,7.07664055,187.45,187.34,7.5016]
[1736558393659,7.07664055,187.45,187.38,7.07664055]
[1736558394654,2.6686,187.39,187.38,7.07664055]
[1736558395956,1.6215,187.48,187.39,2.6685]
[1736558396155,1.6215,187.48,187.43,7.07664055]
[1736558396357,7.07664055,187.46,187.34,4.8323]
[1736558396554,2.6686,187.4,187.38,7.07664055]
[1736558396758,7.07664055,187.44,187.38,7.07664055]
[1736558398061,2.6685,187.4,187.38,7.07664055]
[1736558401355,2.6686,187.39,187.38,7.07664055]
[1736558402261,2.6694,187.34,187.29,2.67]
[1736558402462,1.642,187.43,187.3,7.07664055]
[1736558402657,7.07664055,187.38,187.32,7.07664055]
[1736558402862,2.6696,187.33,187.3,7.07664055]
[1736558403258,7.07664055,187.38,187.3,7.07664055]
[1736558403459,1.6365,187.41,187.3,7.07664055]
[1736558403460,2.6697,187.31,187.3,7.07664055]
[1736558403661,7.07664055,187.36,187.3,7.07664055]
[1736558404257,7.07664055,187.36,187.29,7.07664055]
[1736558404464,7.07664055,187.36,187.31,7.07664055]
[1736558404963,7.07664055,187.36,187.26,2.6704]
[1736558405158,7.07664055,187.34,187.15,7.39321307]
[1736558405361,2.6702,187.28,187.26,7.07664055]
[1736558405659,2.6702,187.28,187.27,7.07664055]
[1736558406264,2.6703,187.27,187.26,7.07664055]
[1736558406459,1.5609,187.33,187.26,7.07664055]
[1736558406659,1.5609,187.33,187.28,7.07664055]
[1736558406865,2.67,187.29,187.28,7.07664055]
[1736558407066,1.5609,187.33,187.26,7.07664055]
[1736558407765,7.07664055,187.37,187.3,7.07664055]
[1736558407960,7.07664055,187.39,187.32,7.07664055]
[1736558408161,2.6693,187.34,187.32,7.07664055]
[1736558408666,7.07664055,187.39,187.32,7.07664055]
[1736558409455,7.07664055,187.35,187.19,5.58]
[1736558409661,7.07664055,187.33,187.26,7.07664055]
[1736558410367,2.6701,187.29,187.26,7.07664055]
[1736558410669,7.07664055,187.35,187.28,7.07664055]
[1736558410864,2.6698,187.31,187.28,7.07664055]
[1736558411167,7.07664055,187.35,187.28,7.07664055]
[1736558411770,2.6699,187.3,187.28,7.07664055]
[1736558414379,1.5768,187.41,187.28,7.07664055]
[1736558414675,1.5768,187.41,187.32,7.07664055]
[1736558414969,2.6694,187.34,187.32,7.07664055]
[1736558416369,7.07664055,187.38,187.32,7.07664055]
[1736558416566,2.6694,187.33,187.32,7.07664055]
[1736558418367,2.6697,187.32,187.3,7.07664055]
[1736558420970,2.6697,187.31,187.3,7.07664055]
[1736558421572,7.07664055,187.36,187.28,7.07664055]
[1736558421771,2.67,187.29,187.28,7.07664055]
[1736558423672,7.1368,187.41,187.28,7.07664055]
[1736558423673,2.6696,187.32,187.28,9.74674055]
[1736558423870,2.6696,187.32,187.3,7.07664055]
[1736558427981,7.07664055,187.35,187.28,7.07664055]
[1736558429673,7.07664055,187.37,187.3,7.07664055]
[1736558430376,2.6696,187.33,187.32,7.07664055]
[1736558431177,7.07664055,187.35,187.3,7.07664055]
[1736558431680,2.6701,187.29,187.28,7.07664055]
[1736558432885,7.07664055,187.36,187.28,7.07664055]
[1736558433082,7.07664055,187.38,187.3,7.07664055]
[1736558433978,2.6695,187.33,187.3,7.07664055]
[1736558434181,1.5768,187.41,187.25,3.1533]
[1736558434386,7.07664055,187.36,187.29,7.07664055]
[1736558434574,2.6699,187.3,187.29,7.07664055]
[1736558435178,1.5768,187.41,187.27,7.07664055]
[1736558435483,2.6701,187.29,187.27,7.07664055]
[1736558435676,7.07664055,187.34,187.25,3.1533]
[1736558435881,7.07664055,187.34,187.26,7.07664055]
[1736558436781,2.6702,187.28,187.26,7.07664055]
[1736558437082,7.07664055,187.32,187.26,7.07664055]
[1736558437384,10.21184055,187.33,187.26,7.07664055]
[1736558438780,2.6702,187.28,187.26,7.07664055]
[1736558438984,10.21184055,187.33,187.26,7.07664055]
[1736558439576,2.6703,187.27,187.26,7.07664055]
[1736558440793,7.07664055,187.31,187.24,7.07664055]
[1736558441483,7.07664055,187.31,187.21,2.6711]
[1736558441682,7.07664055,187.31,187.25,7.07664055]
[1736558443187,2.6704,187.26,187.25,7.07664055]
[1736558445779,6.49622521,187.37,187.25,7.07664055]
[1736558445985,7.07664055,187.36,187.29,7.07664055]
[1736558446387,2.6698,187.31,187.29,7.07664055]
[1736558446985,6.51733666,187.38,187.29,7.07664055]
[1736558447188,6.51733666,187.38,187.33,7.07664055]
[1736558447388,11.91364055,187.4,187.33,7.07664055]
[1736558447782,2.6693,187.34,187.33,7.07664055]
[1736558448680,7.07664055,187.38,187.31,7.07664055]
[1736558448881,2.6696,187.32,187.31,7.07664055]
[1736558451890,2.6699,187.3,187.27,4.6812]
[1736558452092,2.6699,187.3,187.29,7.07664055]
[1736558453894,7.07664055,187.34,187.23,2.6707]
[1736558454090,7.07664055,187.32,187.23,2.6707]
[1736558454292,7.07664055,187.32,187.25,7.07664055]
[1736558454694,2.6704,187.26,187.25,7.07664055]
[1736558457728,6.51733666,187.36,187.25,7.07664055]
[1736558457909,6.51733666,187.36,187.31,7.07664055]
[1736558458408,13.59397721,187.38,187.31,7.07664055]
[1736558459206,2.6696,187.32,187.31,7.07664055]
[1736558459401,4.7891,187.39,187.31,7.07664055]
[1736558459609,11.86574055,187.39,187.33,7.07664055]
[1736558461103,2.6693,187.34,187.33,7.07664055]
[1736558462304,2.6695,187.33,187.31,7.07664055]
[1736558464508,11.86574055,187.39,187.31,7.07664055]
[1736558464711,2.6696,187.32,187.31,7.07664055]
[1736558468915,4.7891,187.39,187.31,7.07664055]
[1736558469213,13.59397721,187.43,187.35,7.07664055]
[1736558469409,13.59397721,187.43,187.37,7.07664055]
[1736558469802,7.07664055,187.43,187.37,7.07664055]
[1736558470505,88.1505,187.44,187.37,7.07664055]
[1736558470816,86.5635,187.44,187.37,7.07664055]
[1736558471010,7.07664055,187.43,187.35,7.07664055]
[1736558471207,7.07664055,187.41,187.35,7.07664055]
[1736558471611,2.669,187.37,187.35,7.07664055]
[1736558473411,7.07664055,187.39,187.29,2.67]
[1736558473707,7.07664055,187.37,187.3,7.07664055]
[1736558474216,7.07664055,187.35,187.28,7.07664055]
[1736558474816,7.07664055,187.33,187.26,7.07664055]
[1736558476317,2.6703,187.28,187.26,7.07664055]
[1736558477218,2.6703,187.28,187.23,2.6708]
[1736558477419,2.6703,187.28,187.25,7.07664055]
[1736558482620,2.6703,187.28,187.27,7.07664055]
[1736558491221,10.27734055,187.37,187.27,7.07664055]
[1736558491423,3.2007,187.37,187.33,7.07664055]
[1736558491667,151.14655362,187.41,187.33,7.07664055]
[1736558491819,151.14655362,187.41,187.19,5.54]
[1736558492130,7.07664055,187.41,187.33,7.07664055]
[1736558492922,2.6692,187.35,187.33,7.07664055]
[1736558494231,2.6693,187.34,187.33,7.07664055]
[1736558494531,7.07664055,187.39,187.31,7.07664055]
[1736558496829,9.76525101,187.42,187.35,7.07664055]
[1736558497134,3.2574,187.42,187.37,7.07664055]
[1736558497435,2.6687,187.38,187.37,7.07664055]
[1736558497634,7.07664055,187.41,187.35,7.07664055]
[1736558497879,7.07664055,187.41,187.29,4.7366]
[1736558497880,7.07664055,187.41,187.33,7.07664055]
[1736558498135,2.669,187.36,187.33,7.07664055]
[1736558498837,2.6692,187.35,187.32,7.07664055]
[1736558499927,2.6693,187.34,187.32,7.07664055]
[1736558501337,7.07664055,187.37,187.3,7.07664055]
[1736558502632,2.6697,187.32,187.3,7.07664055]
[1736558504136,2.6692,187.35,187.31,2.6697]
[1736558504335,10.33404055,187.42,187.33,7.07664055]
[1736558504529,10.33404055,187.42,187.35,7.07664055]
[1736558505137,3.2574,187.42,187.37,7.07664055]
[1736558505437,2.6686,187.39,187.37,7.07664055]
[1736558505742,2.6693,187.35,187.3,2.6698]
[1736558505935,7.07664055,187.39,187.32,7.07664055]
[1736558506639,7.07664055,187.37,187.32,7.07664055]
[1736558508934,2.6694,187.34,187.32,7.07664055]
[1736558514046,7.07664055,187.39,187.32,7.07664055]
[1736558514246,2.6694,187.33,187.32,7.07664055]
[1736558516545,2.6694,187.33,187.29,2.67]
[1736558516546,7.07664055,187.35,187.27,7.07664055]
[1736558517642,7.07664055,187.33,187.26,7.07664055]
[1736558517843,3.2324,187.34,187.28,7.07664055]
[1736558518054,3.2324,187.34,187.3,7.07664055]
[1736558518243,2.6695,187.33,187.3,7.07664055]
[1736558518542,1.6118,187.34,187.3,7.07664055]
[1736558519642,2.6698,187.31,187.28,7.07664055]
[1736558519946,1.6118,187.34,187.28,7.07664055]
[1736558520943,2.67,187.3,187.28,7.07664055]
[1736558521347,2.67,187.29,187.28,7.07664055]
[1736558524148,1.6118,187.34,187.28,7.07664055]
[1736558524347,2.6698,187.31,187.3,7.07664055]
[1736558525956,2.6695,187.33,187.3,7.07664055]
[1736558526255,2.6695,187.33,187.32,7.07664055]
[1736558527655,2.6692,187.35,187.32,7.07664055]
[1736558527858,7.07664055,187.43,187.35,7.07664055]
[1736558528156,7.07664055,187.43,187.37,7.07664055]
[1736558529063,2.6688,187.38,187.37,7.07664055]
[1736558530462,7.07664055,187.41,187.35,7.07664055]
[1736558530678,7.07664055,187.41,187.33,7.07664055]
[1736558531469,2.6693,187.35,187.33,7.07664055]
[1736558532266,7.07664055,187.41,187.33,7.07664055]
[1736558532467,2.6693,187.34,187.33,7.07664055]
[1736558533071,2.6696,187.33,187.32,7.07664055]
[1736558533465,7.07664055,187.39,187.32,7.07664055]
[1736558534466,2.6694,187.34,187.32,7.07664055]
[1736558535271,7.07664055,187.39,187.32,7.07664055]
[1736558535573,2.6694,187.33,187.32,7.07664055]
[1736558536069,2.6697,187.31,187.3,7.07664055]
[1736558537768,7.07664055,187.33,187.26,7.07664055]
[1736558538373,2.6703,187.27,187.26,7.07664055]
[1736558539765,2.6708,187.24,187.21,4.8562]
[1736558539969,2.6708,187.24,187.23,7.07664055]
[1736558542874,7.07664055,187.29,187.16,4.9498]
[1736558543073,2.6711,187.22,187.17,2.6717]
[1736558543275,2.6711,187.22,187.21,7.07664055]
[1736558545492,7.07664055,187.25,187.16,4.9498]
[1736558545679,7.07664055,187.25,187.18,7.07664055]
[1736558545981,2.6717,187.17,187.12,2.6723]
[1736558546179,7.07664055,187.25,187.12,2.6723]
[1736558546380,7.07664055,187.25,187.18,7.07664055]
[1736558546776,2.6714,187.19,187.18,7.07664055]
[1736558551180,7.07664055,187.23,187.1,5.54]
[1736558551385,7.07664055,187.23,187.12,2.6724]
[1736558551386,2.6719,187.16,187.12,2.6724]
[1736558551685,7.07664055,187.19,187.02,7.39321307]
[1736558551887,2.6727,187.1,187.02,1.545]
[1736558552281,2.6733,187.06,187.02,1.545]
[1736558552884,2.6733,187.06,187.05,7.07664055]
[1736558554193,2.6736,187.04,187.02,1.545]
[1736558554389,2.6736,187.04,187.03,7.07664055]
[1736558556487,7.07664055,187.11,187.03,7.07664055]
[1736558556683,7.07664055,187.11,187.05,7.07664055]
[1736558557593,2.6733,187.06,187.05,7.07664055]
[1736558557896,2.6733,187.06,187.03,7.07664055]
[1736558558091,7.07664055,187.09,186.98,2.6744]
[1736558558400,7.07664055,187.09,187.02,7.07664055]
[1736558558590,2.6736,187.05,187.04,7.07664055]
[1736558558787,7.07664055,187.11,187.04,7.07664055]
[1736558559697,2.6734,187.06,187.04,7.07664055]
[1736558559991,7.07664055,187.11,187.04,7.07664055]
[1736558560198,2.6734,187.05,187.04,7.07664055]
[1736558561198,2.6733,187.06,187.04,7.07664055]
[1736558561599,7.07664055,187.11,187.04,7.07664055]
[1736558561900,7.07664055,187.09,187.02,7.07664055]
[1736558562088,2.6736,187.04,187.02,7.07664055]
[1736558562489,7.07664055,187.09,187.02,7.07664055]
[1736558562694,2.6737,187.03,187.02,7.07664055]
[1736558563203,7.07664055,187.09,187.02,7.07664055]
[1736558563701,2.6732,187.07,187.02,7.07664055]
[1736558564000,7.07664055,187.09,187.02,7.07664055]
[1736558564400,2.6736,187.04,187.02,7.07664055]
[1736558564798,7.07664055,187.07,186.98,4.9164]
[1736558565097,2.6737,187.03,187.0,7.07664055]
[1736558565492,2.6739,187.02,187.0,7.07664055]
[1736558567398,7.07664055,187.07,187.0,7.07664055]
[1736558567903,2.6739,187.02,187.0,7.07664055]
[1736558569709,2.674,187.01,186.98,4.9164]
[1736558569900,2.674,187.01,187.0,7.07664055]
[1736558573905,2.6739,187.03,187.0,7.07664055]
[1736558574104,2.6739,187.03,187.02,7.07664055]
[1736558579408,2.6739,187.03,187.0,7.07664055]
[1736558580312,2.6739,187.03,187.02,7.07664055]
[1736558580512,2.6739,187.03,187.0,7.07664055]
[1736558581712,2.674,187.02,187.0,7.07664055]
[1736558583017,7.07664055,187.1,187.0,7.07664055]
[1736558583212,7.07664055,187.1,187.03,7.07664055]
[1736558584617,1.6458,187.13,187.05,7.07664055]
[1736558584816,1.6458,187.13,187.07,7.07664055]
[1736558585216,7.07664055,187.12,187.05,7.07664055]
[1736558585517,7.07664055,187.1,187.05,7.07664055]
[1736558586215,2.6733,187.07,187.05,7.07664055]
[1736558587314,7.07664055,187.1,187.05,7.07664055]
[1736558587520,2.6733,187.06,187.05,7.07664055]
[1736558588315,2.6726,187.11,187.05,7.07664055]
[1736558588517,86.5795,187.17,187.07,7.07664055]
[1736558588872,2.6723,187.13,187.11,7.07664055]
[1736558589315,86.5795,187.17,187.11,7.07664055]
[1736558589615,2.6723,187.13,187.11,7.07664055]
[1736558591215,7.07664055,187.16,187.09,7.07664055]
[1736558591419,7.07664055,187.14,187.09,7.07664055]
[1736558592019,2.6726,187.12,187.09,7.07664055]
[1736558592419,7.07664055,187.16,187.09,7.07664055]
[1736558592613,2.6727,187.11,187.09,7.07664055]
[1736558593219,7.07664055,187.12,187.07,7.07664055]
[1736558593417,7.07664055,187.12,187.03,5.54]
[1736558593719,2.673,187.08,187.03,7.07664055]
[1736558593916,7.07664055,187.12,187.05,7.07664055]
[1736558594120,7.07664055,187.12,187.07,7.07664055]